bitfinex/quotes_BTCUSD_20251104
["timestamp","ask_amount","ask_price","bid_price","bid_amount"]
[1762224665531,0.01470353,106760.0,106740.0,0.18737118]
[1762224665736,0.01470353,106760.0,106750.0,0.61006126]
[1762224665941,0.19967649,106790.0,106760.0,0.52732662]
[1762224665942,0.8923848,106790.0,106760.0,0.52732662]
[1762224666146,0.8923848,106790.0,106760.0,0.55673532]
[1762224666147,0.110286,106780.0,106760.0,0.55673532]
[1762224666344,0.44439947,106780.0,106760.0,0.55673532]
[1762224666580,0.33411347,106780.0,106770.0,0.20337853]
[1762224666781,0.33459608,106780.0,106770.0,0.20337853]
[1762224667704,0.52189707,106780.0,106770.0,0.01606]
[1762224667905,0.31285587,106780.0,106770.0,0.01606]
[1762224668309,0.1877836,106780.0,106770.0,0.01606]
[1762224669133,0.75515989,106780.0,106770.0,0.001]
[1762224669517,0.37549355,106780.0,106770.0,0.001]
[1762224669719,0.75515989,106780.0,106770.0,0.001]
[1762224670161,0.75515989,106780.0,106760.0,0.19367423]
[1762224670364,0.75515989,106780.0,106760.0,0.21673423]
[1762224670365,0.69430785,106770.0,106760.0,0.21673423]
[1762224670576,0.19430785,106770.0,106760.0,0.21673423]
[1762224670887,0.38162638,106770.0,106760.0,0.0224]
[1762224671470,0.80120272,106770.0,106760.0,0.00634]
[1762224671805,0.110286,106760.0,106750.0,0.2315113]
[1762224672121,0.29763962,106750.0,106740.0,0.19910118]
[1762224672328,0.38166147,106750.0,106740.0,0.01173]
[1762224672543,0.39405147,106750.0,106740.0,0.01173]
[1762224673016,0.50448753,106750.0,106740.0,0.01173]
[1762224673191,0.18737118,106740.0,106730.0,0.0294]
[1762224673399,0.18738873,106730.0,106720.0,0.01173]
[1762224673602,0.38169658,106730.0,106720.0,0.01173]
[1762224674035,0.38169658,106730.0,106720.0,0.02779]
[1762224674228,0.38883658,106730.0,106720.0,0.02779]
[1762224674427,0.38892694,106730.0,106720.0,0.02779]
[1762224674652,0.78411328,106730.0,106720.0,0.01173]
[1762224674857,0.78411328,106730.0,106710.0,0.21048382]
[1762224674858,0.18740629,106720.0,106710.0,0.01173]
[1762224674990,0.29769229,106720.0,106710.0,0.01173]
[1762224675360,0.29769229,106720.0,106710.0,0.21546385]
[1762224675544,0.29769229,106720.0,106710.0,0.02804]
[1762224675957,0.29769229,106720.0,106710.0,0.21546385]
[1762224676191,0.29764057,106720.0,106710.0,0.03104]
[1762224676851,0.29764057,106720.0,106710.0,0.03304]
[1762224677572,0.29769229,106720.0,106710.0,0.22046385]
[1762224677899,0.30698194,106720.0,106710.0,0.22046385]
[1762224678574,0.61957565,106720.0,106710.0,0.22046385]
[1762224678804,0.610286,106720.0,106710.0,0.24454385]
[1762224679017,0.110286,106720.0,106710.0,0.24454385]
[1762224679964,0.29769229,106720.0,106710.0,0.24454385]
[1762224680167,0.28102705,106730.0,106710.0,0.24454385]
[1762224680390,0.39131305,106730.0,106720.0,0.01631]
[1762224680937,0.39131305,106730.0,106720.0,0.22779629]
[1762224681147,0.39131305,106730.0,106720.0,0.04039]
[1762224681322,0.39131305,106730.0,106720.0,0.01631]
[1762224681727,0.29769229,106720.0,106710.0,0.20115385]
[1762224681895,0.18740629,106720.0,106710.0,0.01273]
[1762224682096,0.18740629,106720.0,106710.0,0.02904]
[1762224682395,0.18740629,106720.0,106710.0,0.05312]
[1762224682600,0.18740629,106720.0,106710.0,0.24054385]
[1762224682946,0.38598362,106720.0,106700.0,0.20303761]
[1762224683148,0.38598362,106720.0,106710.0,0.003]
[1762224683348,0.76564996,106720.0,106710.0,0.003]
[1762224684155,0.76564996,106720.0,106710.0,0.002]
[1762224685492,0.76564996,106720.0,106710.0,0.005]
[1762224689508,0.74310996,106720.0,106710.0,0.01674]
[1762224689916,0.76576996,106720.0,106710.0,0.01674]
[1762224692112,0.76576996,106720.0,106710.0,0.005]
[1762224692547,0.38610362,106720.0,106710.0,0.005]
[1762224692783,0.76576996,106720.0,106710.0,0.005]
[1762224695892,0.76576996,106720.0,106710.0,0.003]
[1762224696089,0.29772742,106700.0,106690.0,0.22967338]
[1762224696541,0.29772742,106700.0,106690.0,0.24584338]
[1762224697070,0.110286,106700.0,106690.0,0.24584338]
[1762224697315,0.110286,106700.0,106690.0,0.24884338]
[1762224697556,0.27144681,106710.0,106700.0,0.18744142]
[1762224697812,0.08402185,106710.0,106700.0,0.22856142]
[1762224698534,0.2714457,106710.0,106700.0,0.24030142]
[1762224699139,0.2714457,106710.0,106700.0,0.24130142]
[1762224699501,0.2714457,106710.0,106700.0,0.24230142]
[1762224699923,0.08402185,106710.0,106700.0,0.24230142]
[1762224701752,0.2714457,106710.0,106700.0,0.24230142]
[1762224702115,0.2714457,106710.0,106700.0,0.05486]
[1762224702622,0.2714457,106710.0,106700.0,0.02991]
[1762224704535,0.3093057,106710.0,106700.0,0.01374]
[1762224704742,0.2837157,106710.0,106700.0,0.0299]
[1762224705355,0.2714457,106710.0,106700.0,0.05267]
[1762224705687,0.2714457,106710.0,106700.0,0.0299]
[1762224706835,0.2714457,106710.0,106700.0,0.21734142]
[1762224706981,0.2714457,106710.0,106700.0,0.24011142]
[1762224707866,0.08402185,106710.0,106700.0,0.24011142]
[1762224708218,0.2714457,106710.0,106700.0,0.24011142]
[1762224710039,0.08402185,106710.0,106700.0,0.24011142]
[1762224710244,0.19775652,106720.0,106710.0,0.18742385]
[1762224710391,0.18742385,106710.0,106700.0,0.22395142]
[1762224710596,0.18742385,106710.0,106700.0,0.03651]
[1762224710810,0.18742385,106710.0,106700.0,0.24011142]
[1762224711341,0.18742385,106710.0,106700.0,0.23911142]
[1762224711746,0.18742385,106710.0,106700.0,0.05167]
[1762224712313,0.18742385,106710.0,106700.0,0.05267]
[1762224716843,0.22828089,106710.0,106700.0,0.05267]
[1762224717042,0.22828089,106710.0,106700.0,0.24011142]
[1762224717261,0.29770985,106710.0,106700.0,0.24011142]
[1762224717459,0.83325649,106710.0,106700.0,0.002]
[1762224717677,0.94354249,106710.0,106700.0,0.002]
[1762224717874,1.28354249,106710.0,106700.0,0.002]
[1762224718086,1.37811855,106710.0,106700.0,0.002]
[1762224718313,0.29772742,106700.0,106690.0,0.00155265]
[1762224718517,0.85953821,106700.0,106690.0,0.00155265]
[1762224719754,0.86053821,106700.0,106690.0,0.00155265]
[1762224720553,0.34950742,106700.0,106690.0,0.00155265]
[1762224720743,0.44408348,106700.0,106690.0,0.00155265]
[1762224720978,0.44508348,106700.0,106690.0,0.00155265]
[1762224722055,0.35050742,106700.0,106690.0,0.00155265]
[1762224722257,0.86153821,106700.0,106690.0,0.00155265]
[1762224722407,0.68516153,106700.0,106690.0,0.00155265]
[1762224725995,1.02616153,106700.0,106690.0,0.00155265]
[1762224726915,1.02516153,106700.0,106690.0,0.00155265]
[1762224727166,1.11973759,106700.0,106690.0,0.00155265]
[1762224727385,1.12273759,106700.0,106690.0,0.00155265]
[1762224727806,1.12173759,106700.0,106690.0,0.00155265]
[1762224728016,1.12373759,106700.0,106690.0,0.00155265]
[1762224730582,0.78908348,106700.0,106690.0,0.00155265]
[1762224730807,1.02816153,106700.0,106690.0,0.00155265]
[1762224734532,1.02820153,106700.0,106690.0,0.00155265]
[1762224734755,1.02816153,106700.0,106690.0,0.00155265]
[1762224734969,1.02916153,106700.0,106690.0,0.00155265]
[1762224735183,1.12373759,106700.0,106690.0,0.00155265]
[1762224740838,1.12377759,106700.0,106690.0,0.00155265]
[1762224741076,1.12373759,106700.0,106690.0,0.00155265]
[1762224742318,0.93629617,106700.0,106690.0,0.00155265]
[1762224742526,1.12373759,106700.0,106690.0,0.00155265]
[1762224744646,1.02816153,106700.0,106690.0,0.00155265]
[1762224751353,1.02820153,106700.0,106690.0,0.00155265]
[1762224751566,1.02816153,106700.0,106690.0,0.00155265]
[1762224752150,0.69350742,106700.0,106690.0,0.00155265]
[1762224752413,0.20463142,106700.0,106690.0,0.02948265]
[1762224752605,0.31491742,106700.0,106690.0,0.05240265]
[1762224752826,0.19244142,106700.0,106690.0,0.23986164]
[1762224753273,0.005,106700.0,106690.0,0.23986164]
[1762224753485,0.19244142,106700.0,106690.0,0.05240265]
[1762224753729,0.19244142,106700.0,106690.0,0.02948265]
[1762224754365,0.20384142,106700.0,106690.0,0.02948265]
[1762224755251,0.19244142,106700.0,106690.0,0.23986164]
[1762224755455,0.005,106700.0,106690.0,0.23986164]
[1762224755658,0.19244142,106700.0,106690.0,0.23986164]
[1762224755871,0.19244142,106700.0,106690.0,0.21694164]
[1762224756082,0.005,106700.0,106690.0,0.21694164]
[1762224756348,0.19244142,106700.0,106690.0,0.23986164]
[1762224756760,0.19244142,106700.0,106690.0,0.05240265]
[1762224757379,0.19044142,106700.0,106690.0,0.05240265]
[1762224758014,0.18744142,106700.0,106690.0,0.05240265]
[1762224758229,0.76827865,106700.0,106690.0,0.00155265]
[1762224758443,1.10927865,106700.0,106690.0,0.00155265]
[1762224758653,1.11027865,106700.0,106690.0,0.00155265]
[1762224758917,1.14646093,106700.0,106690.0,0.00155265]
[1762224759134,1.14546093,106700.0,106690.0,0.00155265]
[1762224759332,1.30707078,106680.0,106670.0,0.01153]
[1762224759564,1.42744684,106680.0,106670.0,0.01153]
[1762224760419,1.42780504,106680.0,106670.0,0.01153]
[1762224760628,1.42780504,106680.0,106670.0,0.01162035]
[1762224760835,1.45244504,106680.0,106670.0,0.01162035]
[1762224761040,1.42780504,106680.0,106670.0,0.01162035]
[1762224761244,1.42780504,106680.0,106670.0,0.01262035]
[1762224761481,1.45244504,106680.0,106670.0,0.00209035]
[1762224762532,1.16326306,106680.0,106670.0,0.00109035]
[1762224762770,1.16626306,106680.0,106670.0,0.00109035]
[1762224763015,1.5477475,106680.0,106670.0,0.00109035]
[1762224763237,1.5933036,106680.0,106650.0,0.00028]
[1762224763445,1.119824,106660.0,106650.0,0.00032822]
[1762224763631,1.20661082,106660.0,106650.0,0.00032822]
[1762224763863,1.23125082,106660.0,106650.0,0.00032822]
[1762224765153,1.23225082,106660.0,106650.0,0.00032822]
[1762224765619,1.23225082,106660.0,106650.0,0.00125562]
[1762224766762,1.144464,106660.0,106650.0,0.00125562]
[1762224768070,0.76397956,106660.0,106650.0,0.00125562]
[1762224768926,0.19530785,106660.0,106650.0,0.20447492]
[1762224769153,0.38281956,106660.0,106650.0,0.21341492]
[1762224769356,0.803014,106660.0,106650.0,0.00125562]
[1762224769561,1.23859006,106660.0,106650.0,0.00125562]
[1762224769758,1.23863006,106660.0,106650.0,0.00125562]
[1762224769987,1.23859006,106660.0,106650.0,0.00125562]
[1762224771009,1.23759006,106660.0,106650.0,0.00125562]
[1762224773839,0.85710562,106660.0,106650.0,0.00125562]
[1762224774065,0.19530785,106660.0,106650.0,0.22897492]
[1762224774295,0.001,106660.0,106650.0,0.22897492]
[1762224775150,0.18851171,106660.0,106650.0,0.20447492]
[1762224775761,0.001,106660.0,106650.0,0.20447492]
[1762224775972,0.110286,106660.0,106650.0,0.20447492]
[1762224776174,0.110286,106660.0,106650.0,0.20847492]
[1762224776797,0.110286,106660.0,106650.0,0.21047492]
[1762224777023,0.110286,106660.0,106650.0,0.23497492]
[1762224778065,0.08402185,106670.0,106660.0,0.18751171]
[1762224778259,0.1580053,106670.0,106660.0,0.20320171]
[1762224778436,0.1580053,106670.0,106660.0,0.22770171]
[1762224778632,0.27151599,106670.0,106660.0,0.01569]
[1762224778882,0.09925185,106670.0,106660.0,0.18751171]
[1762224779228,0.09925185,106670.0,106660.0,0.18951171]
[1762224779476,0.28674599,106670.0,106660.0,0.002]
[1762224779677,0.31122599,106670.0,106660.0,0.003]
[1762224780243,0.3957275,106670.0,106660.0,0.003]
[1762224780445,0.3712475,106670.0,106660.0,0.19051171]
[1762224780676,0.3712475,106670.0,106660.0,0.20620171]
[1762224780882,0.08402185,106670.0,106660.0,0.23070171]
[1762224781317,0.27148084,106690.0,106680.0,0.18747656]
[1762224781523,0.28331084,106690.0,106680.0,0.18747656]
[1762224781727,0.29854084,106690.0,106670.0,0.22324414]
[1762224781953,0.32302084,106690.0,106670.0,0.22324414]
[1762224782377,0.13556185,106690.0,106680.0,0.18747656]
[1762224782591,0.13556185,106690.0,106680.0,0.22766656]
[1762224782592,0.002,106690.0,106680.0,0.22766656]
[1762224783232,0.29300689,106710.0,106690.0,0.18745899]
[1762224783437,0.65748689,106710.0,106690.0,0.21993899]
[1762224783650,0.110286,106700.0,106690.0,0.21993899]
[1762224784102,0.110286,106700.0,106690.0,0.21112899]
[1762224784314,0.110286,106710.0,106700.0,0.18744142]
[1762224784573,0.00013554,106710.0,106700.0,0.22763142]
[1762224785913,0.00013554,106710.0,106700.0,0.22963142]
[1762224787190,0.110286,106730.0,106720.0,0.18739201]
[1762224787402,0.30743479,106740.0,106730.0,0.18738873]
[1762224787608,0.29767473,106730.0,106720.0,0.22758201]
[1762224787812,0.18738873,106730.0,106720.0,0.22759629]
[1762224788241,0.22162879,106740.0,106720.0,0.22759629]
[1762224788461,0.08402185,106730.0,106720.0,0.23159629]
[1762224788872,0.08402185,106730.0,106720.0,0.24384629]
[1762224788873,0.27141058,106730.0,106720.0,0.24384629]
[1762224789071,0.27141058,106730.0,106720.0,0.05244]
[1762224789385,0.27141058,106730.0,106720.0,0.24084629]
[1762224789828,0.27141058,106730.0,106720.0,0.23884629]
[1762224790249,0.27141058,106730.0,106720.0,0.23984629]
[1762224791289,0.27141058,106730.0,106720.0,0.24284629]
[1762224792101,0.27141058,106730.0,106720.0,0.05544]
[1762224793566,0.27141058,106730.0,106720.0,0.24284629]
[1762224794575,0.27141058,106730.0,106720.0,0.05544]
[1762224796483,0.29907058,106730.0,106720.0,0.03094]
[1762224796689,0.9007164,106730.0,106720.0,0.004]
[1762224797124,0.9007164,106730.0,106720.0,0.001]
[1762224797341,1.2407164,106730.0,106720.0,0.001]
[1762224797547,1.2407164,106730.0,106720.0,0.003]
[1762224797966,0.20600785,106730.0,106720.0,0.22996629]
[1762224798173,0.38169658,106730.0,106720.0,0.01759]
[1762224798377,0.38169658,106730.0,106720.0,0.20399629]
[1762224798528,0.38269658,106730.0,106720.0,0.22696629]
[1762224798741,0.38269658,106730.0,106720.0,0.01659]
[1762224799571,0.38269658,106730.0,106720.0,0.03956]
[1762224799836,0.38269658,106730.0,106720.0,0.22696629]
[1762224800040,0.19530785,106730.0,106720.0,0.22696629]
[1762224800537,0.111286,106730.0,106720.0,0.22696629]
[1762224800745,0.611286,106730.0,106720.0,0.22696629]
[1762224801174,0.29867473,106730.0,106720.0,0.22696629]
[1762224801532,0.611286,106730.0,106720.0,0.22696629]
[1762224801728,0.79867473,106730.0,106720.0,0.22696629]
[1762224801952,0.29867473,106730.0,106720.0,0.22696629]
[1762224803240,0.29867473,106730.0,106720.0,0.03956]
[1762224803475,0.29867473,106730.0,106720.0,0.23294629]
[1762224803673,0.29867473,106730.0,106720.0,0.04554]
[1762224804063,0.38269658,106730.0,106720.0,0.04554]
[1762224804727,0.38269658,106730.0,106720.0,0.23294629]
[1762224805549,0.18740629,106720.0,106710.0,0.00598]
[1762224805748,0.18740629,106720.0,106710.0,0.19340385]
[1762224805986,0.18740629,106720.0,106710.0,0.04554]
[1762224806193,0.29769229,106720.0,106710.0,0.23296385]
[1762224806371,0.29769229,106720.0,106710.0,0.04554]
[1762224806733,0.80883375,106720.0,106710.0,0.002]
[1762224806933,0.80883375,106720.0,106710.0,0.05139]
[1762224806934,0.75756375,106720.0,106710.0,0.05139]
[1762224807135,0.37707931,106720.0,106710.0,0.05139]
[1762224807775,0.29769229,106720.0,106710.0,0.04939]
[1762224807979,0.29769229,106720.0,106710.0,0.02642]
[1762224808402,0.29769229,106720.0,106680.0,0.35794217]
[1762224808403,0.18744298,106700.0,106680.0,0.20904217]
[1762224808633,0.18744298,106700.0,106680.0,0.54917771]
[1762224808773,0.18744298,106700.0,106680.0,0.57294771]
[1762224808982,0.18744298,106700.0,106690.0,0.01593]
[1762224809383,0.18745899,106690.0,106680.0,0.23294766]
[1762224809831,0.32541499,106690.0,106680.0,0.00436733]
[1762224810041,0.81282128,106690.0,106680.0,0.00436733]
[1762224810246,0.81282128,106690.0,106680.0,0.00036733]
[1762224810447,0.90739734,106690.0,106680.0,0.00036733]
[1762224810717,0.90739734,106690.0,106680.0,0.00236733]
[1762224811130,0.90739734,106690.0,106680.0,0.00036733]
[1762224811570,0.90939734,106690.0,106680.0,0.00036733]
[1762224811808,0.29974499,106690.0,106680.0,0.04006733]
[1762224812004,0.30174499,106690.0,106680.0,0.04006733]
[1762224812649,0.29974499,106690.0,106680.0,0.04006733]
[1762224812871,0.29774499,106690.0,106680.0,0.04006733]
[1762224813076,0.29874499,106690.0,106680.0,0.04006733]
[1762224813229,0.001,106690.0,106680.0,0.22754389]
[1762224813645,0.18845899,106690.0,106680.0,0.22754389]
[1762224813980,0.001,106690.0,106680.0,0.22754389]
[1762224814403,0.18845899,106690.0,106680.0,0.22754389]
[1762224815038,0.001,106690.0,106680.0,0.22754389]
[1762224816843,0.001,106690.0,106680.0,0.22954389]
[1762224817473,0.001,106690.0,106680.0,0.22754389]
[1762224817672,0.27147784,106710.0,106700.0,0.18744142]
[1762224817875,0.08402185,106710.0,106700.0,0.23892142]
[1762224818170,0.2714457,106710.0,106700.0,0.23892142]
[1762224818990,0.2714457,106710.0,106700.0,0.05148]
[1762224819216,0.2714457,106710.0,106700.0,0.24092142]
[1762224819433,0.2714457,106710.0,106700.0,0.05348]
[1762224825782,0.2714457,106710.0,106700.0,0.24092142]
[1762224827126,0.2714457,106710.0,106700.0,0.05348]
[1762224827587,0.4836239,106710.0,106700.0,0.002]
[1762224827813,0.99470293,106710.0,106700.0,0.002]
[1762224828052,0.94529073,106710.0,106700.0,0.002]
[1762224828276,0.4097917,106710.0,106700.0,0.002]
[1762224828495,0.4097917,106710.0,106700.0,0.01172]
[1762224828717,0.4342117,106710.0,106700.0,0.01172]
[1762224828937,0.4352117,106710.0,106700.0,0.01172]
[1762224829371,0.29870985,106710.0,106700.0,0.05129]
[1762224829597,0.29870985,106710.0,106700.0,0.23873142]
[1762224829831,0.29870985,106710.0,106700.0,0.05129]
[1762224830302,0.29870985,106710.0,106700.0,0.23873142]
[1762224830767,0.79870985,106710.0,106700.0,0.23873142]
[1762224830987,0.29870985,106710.0,106700.0,0.23873142]
[1762224832784,0.611286,106710.0,106700.0,0.23873142]
[1762224833204,0.79870985,106710.0,106700.0,0.23873142]
[1762224833428,0.001,106710.0,106700.0,0.23873142]
[1762224834364,0.28311282,106730.0,106720.0,0.18740629]
[1762224834583,0.39339882,106730.0,106720.0,0.21435629]
[1762224834803,0.39339882,106730.0,106720.0,0.23869629]
[1762224835234,0.39339882,106730.0,106720.0,0.05129]
[1762224835501,0.39539882,106730.0,106720.0,0.05129]
[1762224835936,0.46003244,106730.0,106720.0,0.02695]
[1762224836384,0.46003244,106730.0,106720.0,0.21435629]
[1762224836618,0.46003244,106730.0,106720.0,0.02695]
[1762224837066,0.46003244,106730.0,106720.0,0.05129]
[1762224837292,0.39739882,106730.0,106720.0,0.05129]
[1762224838170,0.28245046,106730.0,106720.0,0.05129]
[1762224838395,0.28245046,106730.0,106720.0,0.23869629]
[1762224839503,0.38569658,106730.0,106720.0,0.23869629]
[1762224839731,0.19630785,106730.0,106720.0,0.23869629]
[1762224839950,0.002,106730.0,106720.0,0.23869629]
[1762224840590,0.30712541,106740.0,106720.0,0.23869629]
[1762224840827,0.3072159,106740.0,106730.0,0.05129]
[1762224841029,0.3072159,106740.0,106730.0,0.23867873]
[1762224841856,0.80921465,106740.0,106730.0,0.23867873]
[1762224842093,0.20092865,106740.0,106730.0,0.23867873]
[1762224842303,0.18738873,106730.0,106720.0,0.01172]
[1762224842513,0.40975658,106730.0,106720.0,0.01172]
[1762224843154,0.40975658,106730.0,106720.0,0.02695]
[1762224843359,0.40975658,106730.0,106720.0,0.05129]
[1762224843922,0.40975658,106730.0,106680.0,0.00023179]
[1762224843923,0.21646629,106720.0,106680.0,0.00023179]
[1762224844138,1.26090587,106690.0,106680.0,0.00023179]
[1762224844538,0.77424684,106690.0,106680.0,0.00023179]
[1762224844692,0.43424684,106690.0,106680.0,0.00023179]
[1762224845243,0.43424684,106690.0,106680.0,0.00123179]
[1762224845420,0.43424684,106690.0,106680.0,0.00036733]
[1762224845940,0.41182684,106690.0,106680.0,0.18784389]
[1762224846814,0.30154084,106690.0,106680.0,0.18784389]
[1762224847452,0.30354084,106690.0,106680.0,0.18784389]
[1762224847838,0.30354084,106690.0,106680.0,0.00036733]
[1762224851562,0.22776386,106690.0,106680.0,0.00850733]
[1762224852329,0.24361386,106690.0,106680.0,0.00850733]
[1762224854707,0.32763571,106690.0,106680.0,0.00850733]
[1762224854918,0.32763571,106690.0,106680.0,0.19598389]
[1762224855168,0.31178571,106690.0,106680.0,0.21184389]
[1762224855384,0.31172362,106690.0,106680.0,0.02436733]
[1762224855583,0.31172362,106690.0,106680.0,0.21184389]
[1762224855823,0.31172362,106690.0,106680.0,0.02436733]
[1762224856021,0.31172362,106690.0,106680.0,0.21184389]
[1762224856591,0.31172362,106690.0,106680.0,0.02436733]
[1762224858366,0.31172362,106690.0,106680.0,0.21184389]
[1762224858581,0.31172362,106690.0,106680.0,0.02436733]
[1762224858754,0.31172362,106690.0,106680.0,0.21184389]
[1762224859194,0.19630785,106690.0,106680.0,0.21184389]
[1762224859397,0.38376684,106690.0,106680.0,0.21184389]
[1762224859612,0.19630785,106690.0,106680.0,0.21184389]
[1762224859820,0.002,106690.0,106680.0,0.23615389]
[1762224860027,0.002,106690.0,106680.0,0.04867733]
[1762224860372,0.002,106690.0,106680.0,0.23615389]
[1762224860781,0.002,106690.0,106680.0,0.23815389]
[1762224861215,0.18744415,106700.0,106680.0,0.23815389]
[1762224861476,0.18744415,106700.0,106690.0,0.01586]
[1762224862528,0.18745899,106690.0,106680.0,0.22229261]
[1762224862728,0.18745899,106690.0,106680.0,0.22029261]
[1762224862856,0.18745899,106690.0,106680.0,0.23615261]
[1762224863059,0.110286,106690.0,106680.0,0.23615261]
[1762224863261,0.18745899,106690.0,106680.0,0.23615261]
[1762224864085,0.18745899,106690.0,106680.0,0.23815261]
[1762224864578,0.18745899,106690.0,106680.0,0.23815389]
[1762224864786,0.110286,106690.0,106680.0,0.23815389]
[1762224865193,0.110286,106690.0,106680.0,0.24015389]
[1762224866003,0.29774499,106690.0,106680.0,0.24015389]
[1762224866216,0.18745899,106690.0,106680.0,0.24015389]
[1762224867557,0.19969415,106700.0,106680.0,0.24015389]
[1762224867863,0.30998015,106700.0,106690.0,0.18745899]
[1762224868353,0.29774499,106690.0,106680.0,0.22229389]
[1762224868511,0.18745899,106690.0,106680.0,0.22229389]
[1762224868715,0.18745899,106690.0,106680.0,0.23616389]
[1762224869146,0.33440015,106700.0,106690.0,0.18745899]
[1762224869349,0.110286,106690.0,106680.0,0.23816389]
[1762224869715,0.110286,106690.0,106680.0,0.24016389]
[1762224869916,0.110286,106690.0,106680.0,0.23816389]
[1762224870323,0.08402185,106710.0,106700.0,0.18744142]
[1762224870527,0.3817317,106710.0,106700.0,0.21145142]
[1762224870776,0.3817317,106710.0,106700.0,0.19558142]
[1762224870982,0.4098617,106710.0,106700.0,0.19558142]
[1762224871159,0.4342817,106710.0,106700.0,0.19558142]
[1762224871600,0.4362817,106710.0,106700.0,0.19558142]
[1762224872059,0.24885785,106710.0,106700.0,0.19558142]
[1762224872504,0.4118617,106710.0,106700.0,0.19558142]
[1762224872676,0.4362817,106710.0,106700.0,0.19558142]
[1762224872974,0.3259957,106710.0,106700.0,0.19558142]
[1762224873283,0.3269957,106710.0,106700.0,0.18744142]
[1762224873534,0.3269957,106710.0,106690.0,0.21814406]
[1762224873711,0.3269957,106710.0,106700.0,0.18744142]
[1762224874113,0.13957185,106710.0,106700.0,0.18744142]
[1762224874296,0.13757185,106710.0,106700.0,0.18744142]
[1762224874500,0.13657185,106710.0,106700.0,0.18744142]
[1762224874702,0.13857185,106710.0,106700.0,0.18744142]
[1762224875113,0.09561185,106710.0,106700.0,0.20331142]
[1762224875285,0.2830357,106710.0,106700.0,0.20331142]
[1762224875470,0.3015757,106710.0,106700.0,0.18744142]
[1762224875673,0.3269957,106710.0,106700.0,0.18744142]
[1762224876166,0.3259957,106710.0,106700.0,0.18744142]
[1762224876360,0.3269957,106710.0,106700.0,0.18744142]
[1762224877640,0.3025757,106710.0,106700.0,0.18744142]
[1762224877773,0.2860357,106710.0,106700.0,0.20331142]
[1762224877976,0.01459,106710.0,106700.0,0.20331142]
[1762224878182,0.2860357,106710.0,106700.0,0.20331142]
[1762224879017,0.32699851,106710.0,106700.0,0.18744142]
[1762224879605,0.13957185,106710.0,106700.0,0.18744142]
[1762224880056,0.09861185,106710.0,106700.0,0.22587142]
[1762224880270,0.003,106710.0,106700.0,0.22587142]
[1762224881237,0.001,106710.0,106700.0,0.22587142]
[1762224881830,0.18740645,106720.0,106710.0,0.18742385]
[1762224882064,0.21779671,106740.0,106720.0,0.18740629]
[1762224882065,0.52105698,106740.0,106720.0,0.18740629]
[1762224882305,0.30712453,106740.0,106730.0,0.04657]
[1762224882516,0.30712453,106740.0,106730.0,0.02401]
[1762224882679,0.30712453,106740.0,106730.0,0.21139873]
[1762224882879,0.61975298,106740.0,106730.0,0.21139873]
[1762224883255,0.61984349,106740.0,106730.0,0.21139873]
[1762224883433,0.62084349,106740.0,106730.0,0.21139873]
[1762224883647,0.80821467,106740.0,106730.0,0.21139873]
[1762224883877,0.30821467,106740.0,106730.0,0.21139873]
[1762224884114,0.62084349,106740.0,106730.0,0.21139873]
[1762224884322,0.95518345,106740.0,106730.0,0.21139873]
[1762224884547,0.30821467,106740.0,106730.0,0.21139873]
[1762224884743,0.13429349,106740.0,106730.0,0.21139873]
[1762224884949,0.35834745,106740.0,106730.0,0.21139873]
[1762224885149,0.54571863,106740.0,106730.0,0.21139873]
[1762224886236,0.02400749,106740.0,106730.0,0.21139873]
[1762224886438,0.35834745,106740.0,106730.0,0.21139873]
[1762224886645,0.02400749,106740.0,106730.0,0.21139873]
[1762224886846,0.39778745,106740.0,106730.0,0.19552873]
[1762224887069,0.37382745,106740.0,106730.0,0.19552873]
[1762224888874,0.37382745,106740.0,106730.0,0.21183873]
[1762224890558,0.00309051,106740.0,106730.0,0.23607873]
[1762224891133,0.00109051,106740.0,106730.0,0.23607873]
[1762224891333,9.051e-05,106740.0,106730.0,0.23607873]
[1762224892161,9.051e-05,106740.0,106730.0,0.23807873]
[1762224893259,0.52180165,106740.0,106730.0,0.05269]
[1762224893466,0.52180165,106740.0,106730.0,0.24007873]
[1762224893888,0.18746169,106740.0,106730.0,0.24007873]
[1762224894105,9.051e-05,106740.0,106730.0,0.24007873]
[1762224896333,0.18746169,106740.0,106730.0,0.24007873]
[1762224896927,9.051e-05,106740.0,106730.0,0.24007873]
[1762224899317,0.18746169,106740.0,106730.0,0.24007873]
[1762224899520,0.23835169,106740.0,106730.0,0.01214]
[1762224899725,0.90703161,106740.0,106730.0,0.004]
[1762224899946,1.01731761,106740.0,106730.0,0.004]
[1762224900356,1.01731761,106740.0,106730.0,0.002]
[1762224901032,1.01731761,106740.0,106720.0,0.00814]
[1762224901033,0.18738873,106730.0,106720.0,0.00814]
[1762224901239,0.61720054,106730.0,106720.0,0.00814]
[1762224901501,0.110286,106730.0,106720.0,0.23609629]
[1762224901706,9.051e-05,106740.0,106730.0,0.18738873]
[1762224901890,0.00109051,106740.0,106730.0,0.21183873]
[1762224902093,0.00109051,106740.0,106730.0,0.23607873]
[1762224902312,0.00209051,106740.0,106730.0,0.23607873]
[1762224902729,0.18746169,106740.0,106730.0,0.23607873]
[1762224903137,0.18746169,106740.0,106730.0,0.05069]
[1762224903138,0.52180165,106740.0,106730.0,0.05069]
[1762224903339,0.88307161,106740.0,106730.0,0.01014]
[1762224903476,0.66726771,106740.0,106730.0,0.01014]
[1762224904073,0.66726771,106740.0,106730.0,0.01214]
[1762224904276,0.44045653,106740.0,106730.0,0.21583873]
[1762224904583,0.62782771,106740.0,106730.0,0.21383873]
[1762224904829,0.53325165,106740.0,106730.0,0.21383873]
[1762224905025,0.53325165,106740.0,106730.0,0.21183873]
[1762224905989,9.051e-05,106740.0,106730.0,0.23607873]
[1762224908632,9.051e-05,106740.0,106730.0,0.23807873]
[1762224908838,9.051e-05,106740.0,106730.0,0.24007873]
[1762224909702,0.52180165,106740.0,106730.0,0.24007873]
[1762224909878,0.88307161,106740.0,106730.0,0.02845]
[1762224910063,0.57269165,106740.0,106730.0,0.01214]
[1762224910460,0.23835169,106740.0,106730.0,0.01214]
[1762224910664,0.23835169,106740.0,106730.0,0.01014]
[1762224910989,0.23835169,106740.0,106730.0,0.19752873]
[1762224911336,0.23835169,106740.0,106730.0,0.19552873]
[1762224911472,0.23835169,106740.0,106730.0,0.00814]
[1762224912070,0.23835169,106740.0,106730.0,0.19552873]
[1762224912709,0.21439169,106740.0,106730.0,0.19552873]
[1762224912912,0.01154051,106740.0,106730.0,0.21183873]
[1762224913072,0.18746169,106740.0,106730.0,0.23607873]
[1762224913723,0.18746169,106740.0,106730.0,0.21183873]
[1762224913932,0.19891169,106740.0,106730.0,0.21183873]
[1762224914593,0.18738873,106730.0,106720.0,0.19554502]
[1762224915015,0.41024658,106730.0,106720.0,0.19554629]
[1762224915215,0.43466658,106730.0,106720.0,0.00814]